Workbook

Sheet Information
B1: TQWT | C1: = | D1: 0.1
B3: Driver Dimensions
B4: Frame Width | C4: = | D4: 31 | E4: cm | F4: =D4/2.54 -> 12.20472441 | G4: in | I4: Plot
B5: Mounting Width | C5: = | D5: 28 | E5: cm | F5: =D5/2.54 -> 11.02362205 | G5: in | H5: x | I5: =CONCATENATE('Panel Calculations'!B31," ",'Panel Calculations'!C31) -> Panel A (baffle)
B6: Mounting Depth | C6: = | D6: 13.2 | E6: cm | F6: =D6/2.54 -> 5.196850394 | G6: in | H6: x | I6: =CONCATENATE('Panel Calculations'!B37," ",'Panel Calculations'!C37) -> Panel B (top)
B7: Magnet Width | C7: = | D7: 19 | E7: cm | F7: =D7/2.54 -> 7.480314961 | G7: in | H7: x | I7: =CONCATENATE('Panel Calculations'!B43," ",'Panel Calculations'!C43) -> Panel C (bottom)
B8: Magnet Height | C8: = | D8: 2.5 | E8: cm | F8: =D8/2.54 -> 0.9842519685 | G8: in | H8: x | I8: =CONCATENATE('Panel Calculations'!B49," ",'Panel Calculations'!C49) -> Panel D (back)
H9: x | I9: =CONCATENATE('Panel Calculations'!B55," ",'Panel Calculations'!C55) -> Panel E (1st inside)
B10: Box Dimensions | H10: x | I10: =CONCATENATE('Panel Calculations'!B61," ",'Panel Calculations'!C61) -> Panel F (2nd inside)
B11: Depth | C11: = | D11: =14*2.54 -> 35.56 | E11: cm | F11: =D11/2.54 -> 14 | G11: in | H11: x | I11: =CONCATENATE('Panel Calculations'!B67," ",'Panel Calculations'!C67) -> Panel G (sides)
B12: Height | C12: = | D12: =34*2.54 -> 86.36 | E12: cm | F12: =D12/2.54 -> 34 | G12: in | H12: x | I12: =CONCATENATE('Panel Calculations'!B73," ",'Panel Calculations'!C73) -> Panel H (port separator)
B13: Width | C13: = | D13: =14*2.54 -> 35.56 | E13: cm | F13: =D13/2.54 -> 14 | G13: in
H14: x | I14: Profile View
B15: Box Parameters
B16: Panel Thickness | C16: = | D16: 2 | E16: cm | F16: =D16/2.54 -> 0.7874015748 | G16: in | I16: Plot
B17: Baffle Offset | C17: = | D17: 2 | E17: cm | F17: =D17/2.54 -> 0.7874015748 | G17: in | H17: x | I17: Advanced Centerline
B18: Driver Offset | C18: = | D18: 5 | E18: cm | F18: =D18/2.54 -> 1.968503937 | G18: in | H18: x | I18: Sample points
H19: x | I19: Guide lines
B20: Baffle Width | C20: = | D20: =D13-2*D50 -> 31.56 | E20: cm | F20: =D20/2.54 -> 12.42519685 | G20: in | H20: x | I20: Driver
B23: HornResp Params
B24: S1 | C24: = | D24: =ROUND('Path Calculations'!P8,0) -> 0 | E24: cm^2
B25: S2 | C25: = | D25: =ROUND('Path Calculations'!P63,0) -> 575 | E25: cm^2
B26: S3 | C26: = | D26: ='Path Calculations'!E67 -> 934.4506796 | E26: cm^2
B27: S4 | C27: = | D27: 300 | E27: cm^2
B28: S5 | C28: = | D28: ='Path Calculations'!P59 -> 300 | E28: cm^2
B29: L12 | C29: = | D29: =ROUND('Path Calculations'!O63,1) -> 78.9 | E29: cm
B30: L23 | C30: = | D30: ='Path Calculations'!G67 -> 49.19117244 | E30: cm
B31: L34 | C31: = | D31: ='Path Calculations'!G68 -> 3.424978596 | E31: cm
B32: L45 | C32: = | D32: ='Path Calculations'!G69 -> 32.07373536 | E32: cm
B34: L (actual) | C34: = | D34: =SUM(D29:D31) -> 131.516151 | E34: cm
B37: Box Design
B38: Vol. (net) | C38: = | D38: =D39-I54 -> 74.70314696 | E38: l. | F38: =(D38*1000/2.54^3)/1728 -> 2.638116738 | G38: cu.ft.
B39: Vol. (gross) | C39: = | D39: =D11*D12*D13/1000 -> 109.2033945 | E39: l. | F39: =D39*0.0353 -> 3.854879826 | G39: cu.ft.
B41: Expansion | C41: = | F41: 13.16870016 | G41: ='Path Calculations'!S32 -> 0.0001353811442
B43: Panels | D43: p | E43: x | F43: y | G43: Goals | H43: # | I43: v
B44: =I5 -> Panel A (baffle) | D44: =$D$16 -> 2 | E44: =D20 -> 31.56 | F44: ='Panel Calculations'!L32 -> 70.2111502 | H44: 1 | I44: =F44*E44*D44*H44/10^3 -> 4.431727801
B45: =I6 -> Panel B (top) | D45: 2 | E45: =D20 -> 31.56 | F45: ='Panel Calculations'!L38 -> 35.56 | H45: 1 | I45: 2.2445472
B46: =I7 -> Panel C (bottom) | D46: 2 | E46: =D20 -> 31.56 | F46: ='Panel Calculations'!L44 -> 35.56 | H46: 1 | I46: 2.2445472
B47: =I8 -> Panel D (back) | D47: 2 | E47: =D20 -> 31.56 | F47: ='Panel Calculations'!L51 -> 82.36 | H47: 1 | I47: 5.1985632
B48: =I9 -> Panel E (1st inside) | D48: 2 | E48: =D20 -> 31.56 | F48: 47.72457442 | G48: ='Path Calculations'!S23 -> 6.858522283e-08 | H48: 1 | I48: 3.012375137
B49: =I10 -> Panel F (2nd inside) | D49: 2 | E49: =D20 -> 31.56 | F49: ='Panel Calculations'!L62 -> 23.4111502 | H49: 1 | I49: 1.477711801
B50: =I11 -> Panel G (sides) | D50: 2 | E50: ='Panel Calculations'!L68 -> 35.56 | F50: ='Panel Calculations'!L71 -> 86.36 | H50: 2 | I50: =F50*E50*D50*H50/10^3 -> 12.2838464
B51: =I12 -> Panel H (port separator) | D51: 2 | E51: ='Panel Calculations'!L74 -> 33.56 | F51: ='Panel Calculations'!L75 -> 10.1488498 | H51: 2 | I51: =F51*E51*D51*H51/10^3 -> 1.362381597
B52: Baffle Offset | D52: =D17 -> 2 | E52: =D20 -> 31.56 | F52: =F45 -> 35.56 | H52: 1 | I52: =F52*E52*D52*H52/10^3 -> 2.2445472
H54: Pnl Vol | I54: =SUM(I44:I53) -> 34.50024754 | J54: l
B57: Equivalent Vented
B58: Net Volume | C58: = | D58: =D38 -> 74.70314696 | E58: l. | F58: =D58*0.0353 -> 2.637021088 | G58: cu.ft. | I58: Axes | J58: x | K58: y
B59: Vent Area | C59: = | D59: =D27 -> 300 | E59: cm^2 | F59: =D59/2.54^2 -> 46.500093 | G59: in^2 | I59: Axis 1 | J59: 0 | K59: 0
B60: Vent Length | C60: = | D60: =D32+D31/2 -> 33.78622466 | E60: cm | F60: =D60/2.54 -> 13.30166325 | G60: in | J60: =J59 -> 0 | K60: =MAX('Panel Calculations'!D3:E65) -> 86.36
B61: Equiv. Vent Dia. | C61: = | D61: =2*(D59/PI())^0.5 -> 19.54410048 | E61: cm | F61: =D61/2.54 -> 7.694527747 | G61: in | I61: Axis 2 | J61: 0 | K61: 0
B62: Port Ratio | C62: = | D62: =D20/(D59/D20) -> 3.320112 | J62: =K60 -> 86.36 | K62: =K61 -> 0
B63: Sd/Vent | C63: = | D63: =D89/D59 -> 1.769666667
B66: Filename | C66: = | D66: I:\Users\Brian.Steele\OneDrive\Hornresp\Import\BOXPLAN.TXT
B68: ID | C68: = | D68: 29.00 | J68: =CONCATENATE(B68,C68,D68) -> ID=29.00
B69: Ang | C69: = | D69: 2.0 x PI | J69: =CONCATENATE(B69,C69,D69) -> Ang=2.0 x PI
B70: Eg | C70: = | D70: 2.83 | J70: Eg=2.83
B71: Rg | C71: = | D71: 0 | J71: Rg=0
B72: Fta | C72: = | D72: 0 | J72: Fta=0
B73: S1 | C73: = | D73: =D24 -> 0 | J73: S1=0
B74: S2 | C74: = | D74: =ROUND(D25,0) -> 575 | J74: S2=575
B75: Par | C75: = | D75: =ROUND(D29,1) -> 78.9 | J75: Par=78.9
B76: F12 | C76: = | D76: 0 | J76: F12=0
B77: S2 | C77: = | D77: =D74 -> 575 | J77: S2=575
B78: S3 | C78: = | D78: =ROUND(D26,0) -> 934 | J78: S3=934
B79: Par | C79: = | D79: =ROUND(D30,1) -> 49.2 | J79: Par=49.2
B80: F23 | C80: = | D80: 0 | J80: F23=0
B81: S3 | C81: = | D81: =D78 -> 934 | J81: S3=934
B82: S4 | C82: = | D82: =ROUND(D27,0) -> 300 | J82: S4=300
B83: Par | C83: = | D83: =ROUND(D31,1) -> 3.4 | J83: Par=3.4
B84: F34 | C84: = | D84: 0 | J84: F34=0
B85: S4 | C85: = | D85: =D82 -> 300 | J85: S4=300
B86: S5 | C86: = | D86: =ROUND(D28,0) -> 300 | J86: S5=300
B87: Par | C87: = | D87: =ROUND(D32,1) -> 32.1 | J87: Par=32.1
B88: F45 | C88: = | D88: 0 | J88: F45=0
B89: Sd | C89: = | D89: 530.9 | J89: Sd=530.9
B90: Bl | C90: = | D90: 16.65 | J90: Bl=16.65
B91: Cms | C91: = | D91: 0.000247 | J91: Cms=0.000247
B92: Rms | C92: = | D92: 2.2 | J92: Rms=2.2
B93: Mmd | C93: = | D93: 60.38 | J93: Mmd=60.38
B94: Le | C94: = | D94: 1.4 | J94: Le=1.4
B95: Re | C95: = | D95: 5.2 | J95: Re=5.2
B96: OD | C96: = | D96: 1 | J96: OD=1
B97: Vrc | C97: = | D97: 0 | J97: Vrc=0
B98: Lrc | C98: = | D98: 0 | J98: Lrc=0
B99: Ap1 | C99: = | D99: 0 | J99: Ap1=0
B100: Lp | C100: = | D100: 0 | J100: Lp=0
B101: Vtc | C101: = | D101: 0 | J101: Vtc=0
B102: Atc | C102: = | D102: 0 | J102: Atc=0
B103: Pmax | C103: = | D103: 350 | J103: Pmax=350
B104: Xmax | C104: = | D104: 12 | J104: Xmax=12
B105: Comment | C105: = | D105: BOXPLAN-TQWT | J105: Comment=BOXPLAN-TQWT

Sheet Panel Calculations
B2: Offset | D2: x | E2: y
D3: 0 | E3: 0
M4: Axes | O4: 0 | P4: 0
B5: Driver | D5: x | E5: y | O5: 0 | P5: =MAX(D2:E124) -> 86.36
D6: =D31 -> 2 | E6: =E37-Information!D4-Information!D18 -> 48.36 | G6: =IF(Information!$H$20="x",'Panel Calculations'!D6,"") -> 2 | H6: =IF(Information!$H$20="x",'Panel Calculations'!E6,"") -> 48.36
D7: =D6 -> 2 | E7: =E6+Information!D4 -> 79.36 | G7: =IF(Information!$H$20="x",'Panel Calculations'!D7,"") -> 2 | H7: =IF(Information!$H$20="x",'Panel Calculations'!E7,"") -> 79.36 | O7: =O4 -> 0 | P7: =P4 -> 0
D8: =D7 -> 2 | E8: =E7-(Information!D4-Information!D5)/2 -> 77.86 | G8: =IF(Information!$H$20="x",'Panel Calculations'!D8,"") -> 2 | H8: =IF(Information!$H$20="x",'Panel Calculations'!E8,"") -> 77.86 | O8: =P5 -> 86.36 | P8: =P4 -> 0
D9: =D8+Information!D6-Information!D8 -> 12.7 | E9: =E8-(Information!D5-Information!D7)/2 -> 73.36 | G9: =IF(Information!$H$20="x",'Panel Calculations'!D9,"") -> 12.7 | H9: =IF(Information!$H$20="x",'Panel Calculations'!E9,"") -> 73.36
D10: =D9+Information!D8 -> 15.2 | E10: =E9 -> 73.36 | G10: =IF(Information!$H$20="x",'Panel Calculations'!D10,"") -> 15.2 | H10: =IF(Information!$H$20="x",'Panel Calculations'!E10,"") -> 73.36
D11: =D10 -> 15.2 | E11: =E10-Information!D7 -> 54.36 | G11: =IF(Information!$H$20="x",'Panel Calculations'!D11,"") -> 15.2 | H11: =IF(Information!$H$20="x",'Panel Calculations'!E11,"") -> 54.36
D12: =D9 -> 12.7 | E12: =E11 -> 54.36 | G12: =IF(Information!$H$20="x",'Panel Calculations'!D12,"") -> 12.7 | H12: =IF(Information!$H$20="x",'Panel Calculations'!E12,"") -> 54.36
D13: =D8 -> 2 | E13: =E6+(Information!D4-Information!D5)/2 -> 49.86 | G13: =IF(Information!$H$20="x",'Panel Calculations'!D13,"") -> 2 | H13: =IF(Information!$H$20="x",'Panel Calculations'!E13,"") -> 49.86
D14: =D13 -> 2 | E14: =E6+Information!D4/2 -> 63.86 | G14: =IF(Information!$H$20="x",'Panel Calculations'!D14,"") -> 2 | H14: =IF(Information!$H$20="x",'Panel Calculations'!E14,"") -> 63.86
D15: =D12 -> 12.7 | E15: =E14 -> 63.86 | G15: =IF(Information!$H$20="x",'Panel Calculations'!D15,"") -> 12.7 | H15: =IF(Information!$H$20="x",'Panel Calculations'!E15,"") -> 63.86
D16: =D15 -> 12.7 | E16: =E12 -> 54.36 | G16: =IF(Information!$H$20="x",'Panel Calculations'!D16,"") -> 12.7 | H16: =IF(Information!$H$20="x",'Panel Calculations'!E16,"") -> 54.36
D17: =D16 -> 12.7 | E17: =E10 -> 73.36 | G17: =IF(Information!$H$20="x",'Panel Calculations'!D17,"") -> 12.7 | H17: =IF(Information!$H$20="x",'Panel Calculations'!E17,"") -> 73.36
O21: Expansion | P21: Cos | Q21: Sin | R21: Tan
O22: =Information!F41 -> 13.16870016 | P22: =COS(O22*PI()/180) -> 0.9737035023 | Q22: =SIN(O22*PI()/180) -> 0.2278189843 | R22: =TAN(O22*PI()/180) -> 0.2339716184
O23: =O22/2 -> 6.584350082 | P23: =COS(O23*PI()/(180*2)) -> 0.9983496689 | Q23: =SIN(O23*PI()/(180*2)) -> 0.05742768158 | R23: =TAN(O23*PI()/(180*2)) -> 0.05752261294
J24: dx | K24: dy
B31: Panel A | C31: (baffle) | D31: =D64+Information!D17 -> 2 | E31: =E63 -> 14.1488498 | G31: =IF(Information!$H$5="x",'Panel Calculations'!D31,0) -> 2 | H31: =IF(Information!$H$5="x",'Panel Calculations'!E31,0) -> 14.1488498
D32: =D31 -> 2 | E32: =E37 -> 84.36 | G32: =IF(Information!$H$5="x",'Panel Calculations'!D32,0) -> 2 | H32: =IF(Information!$H$5="x",'Panel Calculations'!E32,0) -> 84.36 | J32: =D31-D32 -> 0 | K32: =E31-E32 -> -70.2111502 | L32: =(J32^2+K32^2)^0.5 -> 70.2111502
D33: =D32+Information!D44 -> 4 | E33: =E32 -> 84.36 | G33: =IF(Information!$H$5="x",'Panel Calculations'!D33,0) -> 4 | H33: =IF(Information!$H$5="x",'Panel Calculations'!E33,0) -> 84.36 | J33: -2 | K33: 0 | L33: =(J33^2+K33^2)^0.5 -> 2
D34: =D33 -> 4 | E34: =E31 -> 14.1488498 | G34: =IF(Information!$H$5="x",'Panel Calculations'!D34,0) -> 4 | H34: =IF(Information!$H$5="x",'Panel Calculations'!E34,0) -> 14.1488498 | J34: 0 | K34: 70.2111502 | L34: =(J34^2+K34^2)^0.5 -> 70.2111502
D35: =D31 -> 2 | E35: =E31 -> 14.1488498 | G35: =IF(Information!$H$5="x",'Panel Calculations'!D35,0) -> 2 | H35: =IF(Information!$H$5="x",'Panel Calculations'!E35,0) -> 14.1488498 | J35: 2 | K35: 0 | L35: =(J35^2+K35^2)^0.5 -> 2
B37: Panel B | C37: (top) | D37: =D70 -> 0 | E37: =E69-Information!D46 -> 84.36 | G37: =IF(Information!$H$6="x",'Panel Calculations'!D37,0) -> 0 | H37: =IF(Information!$H$6="x",'Panel Calculations'!E37,0) -> 84.36
D38: =D37+Information!D11 -> 35.56 | E38: =E37 -> 84.36 | G38: =IF(Information!$H$6="x",'Panel Calculations'!D38,0) -> 35.56 | H38: =IF(Information!$H$6="x",'Panel Calculations'!E38,0) -> 84.36 | J38: =D37-D38 -> -35.56 | K38: 0 | L38: =(J38^2+K38^2)^0.5 -> 35.56
D39: =D38 -> 35.56 | E39: =E38+Information!D16 -> 86.36 | G39: =IF(Information!$H$6="x",'Panel Calculations'!D39,0) -> 35.56 | H39: =IF(Information!$H$6="x",'Panel Calculations'!E39,0) -> 86.36 | J39: 0 | K39: -2 | L39: =(J39^2+K39^2)^0.5 -> 2
D40: =D37 -> 0 | E40: =E39 -> 86.36 | G40: =IF(Information!$H$6="x",'Panel Calculations'!D40,0) -> 0 | H40: =IF(Information!$H$6="x",'Panel Calculations'!E40,0) -> 86.36 | J40: 35.56 | K40: 0 | L40: =(J40^2+K40^2)^0.5 -> 35.56
D41: =D37 -> 0 | E41: =E37 -> 84.36 | G41: =IF(Information!$H$6="x",'Panel Calculations'!D41,0) -> 0 | H41: =IF(Information!$H$6="x",'Panel Calculations'!E41,0) -> 84.36 | J41: 0 | K41: 2 | L41: =(J41^2+K41^2)^0.5 -> 2
B43: Panel C | C43: (bottom) | D43: =D67 -> 0 | E43: =E67+Information!D46 -> 2 | G43: =IF(Information!$H$7="x",'Panel Calculations'!D43,0) -> 0 | H43: =IF(Information!$H$7="x",'Panel Calculations'!E43,0) -> 2
D44: =D68 -> 35.56 | E44: =E43 -> 2 | G44: =IF(Information!$H$7="x",'Panel Calculations'!D44,0) -> 35.56 | H44: =IF(Information!$H$7="x",'Panel Calculations'!E44,0) -> 2 | J44: =D43-D44 -> -35.56 | K44: 0 | L44: =(J44^2+K44^2)^0.5 -> 35.56
D45: =D44 -> 35.56 | E45: =E44-Information!D16 -> 0 | G45: =IF(Information!$H$7="x",'Panel Calculations'!D45,0) -> 35.56 | H45: =IF(Information!$H$7="x",'Panel Calculations'!E45,0) -> 0 | J45: 0 | K45: 2 | L45: =(J45^2+K45^2)^0.5 -> 2
D46: =D43 -> 0 | E46: =E45 -> 0 | G46: =IF(Information!$H$7="x",'Panel Calculations'!D46,0) -> 0 | H46: =IF(Information!$H$7="x",'Panel Calculations'!E46,0) -> 0 | J46: 35.56 | K46: 0 | L46: =(J46^2+K46^2)^0.5 -> 35.56
D47: =D43 -> 0 | E47: =E43 -> 2 | G47: =IF(Information!$H$7="x",'Panel Calculations'!D47,0) -> 0 | H47: =IF(Information!$H$7="x",'Panel Calculations'!E47,0) -> 2 | J47: 0 | K47: -2 | L47: =(J47^2+K47^2)^0.5 -> 2
B49: Panel D | C49: (back) | D49: =D68 -> 35.56 | E49: =E67+Information!D46 -> 2 | G49: =IF(Information!$H$8="x",'Panel Calculations'!D49,0) -> 35.56 | H49: =IF(Information!$H$8="x",'Panel Calculations'!E49,0) -> 2
D50: =D49-Information!D16 -> 33.56 | E50: =E49 -> 2 | G50: =IF(Information!$H$8="x",'Panel Calculations'!D50,0) -> 33.56 | H50: =IF(Information!$H$8="x",'Panel Calculations'!E50,0) -> 2 | J50: =D49-D50 -> 2 | K50: 0 | L50: =(J50^2+K50^2)^0.5 -> 2
D51: =D50 -> 33.56 | E51: =E38 -> 84.36 | G51: =IF(Information!$H$8="x",'Panel Calculations'!D51,0) -> 33.56 | H51: =IF(Information!$H$8="x",'Panel Calculations'!E51,0) -> 84.36 | J51: 0 | K51: -82.36 | L51: =(J51^2+K51^2)^0.5 -> 82.36
D52: =D51+Information!D16 -> 35.56 | E52: =E51 -> 84.36 | G52: =IF(Information!$H$8="x",'Panel Calculations'!D52,0) -> 35.56 | H52: =IF(Information!$H$8="x",'Panel Calculations'!E52,0) -> 84.36 | J52: -2 | K52: 0 | L52: =(J52^2+K52^2)^0.5 -> 2
D53: =D49 -> 35.56 | E53: =E49 -> 2 | G53: =IF(Information!$H$8="x",'Panel Calculations'!D53,0) -> 35.56 | H53: =IF(Information!$H$8="x",'Panel Calculations'!E53,0) -> 2 | J53: 0 | K53: 82.36 | L53: =(J53^2+K53^2)^0.5 -> 82.36
B55: Panel E | C55: (1st inside) | D55: =D50 -> 33.56 | E55: =E63+(D55-D34)*Q23+Information!D48/Q22 -> 24.62531171 | G55: =IF(Information!$H$9="x",'Panel Calculations'!D55,0) -> 33.56 | H55: =IF(Information!$H$9="x",'Panel Calculations'!E55,0) -> 24.62531171
D56: =D55-Information!F48*Q22 -> 22.68743593 | E56: =E55+Information!F48*P22 -> 71.09489697 | G56: =IF(Information!$H$9="x",'Panel Calculations'!D56,0) -> 22.68743593 | H56: =IF(Information!$H$9="x",'Panel Calculations'!E56,0) -> 71.09489697 | J56: =D55-D56 -> 10.87256407 | K56: -46.46958526 | L56: =(J56^2+K56^2)^0.5 -> 47.72457442
D57: =D56-Information!D48*P22 -> 20.74002892 | E57: =E56-Information!D48*Q22 -> 70.639259 | G57: =IF(Information!$H$9="x",'Panel Calculations'!D57,0) -> 20.74002892 | H57: =IF(Information!$H$9="x",'Panel Calculations'!E57,0) -> 70.639259 | J57: 1.947407005 | K57: 0.4556379686 | L57: =(J57^2+K57^2)^0.5 -> 2
D58: =D55-Information!D48*P22 -> 31.612593 | E58: =E55-Information!D48*Q22 -> 24.16967374 | G58: =IF(Information!$H$9="x",'Panel Calculations'!D58,0) -> 31.612593 | H58: =IF(Information!$H$9="x",'Panel Calculations'!E58,0) -> 24.16967374 | J58: -10.87256407 | K58: 46.46958526 | L58: =(J58^2+K58^2)^0.5 -> 47.72457442
D59: =D55 -> 33.56 | E59: =E55 -> 24.62531171 | G59: =IF(Information!$H$9="x",'Panel Calculations'!D59,0) -> 33.56 | H59: =IF(Information!$H$9="x",'Panel Calculations'!E59,0) -> 24.62531171 | J59: -1.947407005 | K59: -0.4556379686 | L59: =(J59^2+K59^2)^0.5 -> 2
B61: Panel F | C61: (2nd inside) | D61: =D40 -> 0 | E61: =E43+Information!D27/(Information!D20-Information!$D$51) -> 12.1488498 | G61: =IF(Information!$H$10="x",'Panel Calculations'!D61,0) -> 0 | H61: =IF(Information!$H$10="x",'Panel Calculations'!E61,0) -> 12.1488498
D62: =D55-(Information!D27/(Information!D20-Information!$D$51)) -> 23.4111502 | E62: =E61 -> 12.1488498 | G62: =IF(Information!$H$10="x",'Panel Calculations'!D62,0) -> 23.4111502 | H62: =IF(Information!$H$10="x",'Panel Calculations'!E62,0) -> 12.1488498 | J62: =D61-D62 -> -23.4111502 | K62: 0 | L62: =(J62^2+K62^2)^0.5 -> 23.4111502
D63: =D62 -> 23.4111502 | E63: =E62+Information!D50 -> 14.1488498 | G63: =IF(Information!$H$10="x",'Panel Calculations'!D63,0) -> 23.4111502 | H63: =IF(Information!$H$10="x",'Panel Calculations'!E63,0) -> 14.1488498 | J63: 0 | K63: -2 | L63: =(J63^2+K63^2)^0.5 -> 2
D64: =D61 -> 0 | E64: =E63 -> 14.1488498 | G64: =IF(Information!$H$10="x",'Panel Calculations'!D64,0) -> 0 | H64: =IF(Information!$H$10="x",'Panel Calculations'!E64,0) -> 14.1488498 | J64: 23.4111502 | K64: 0 | L64: =(J64^2+K64^2)^0.5 -> 23.4111502
D65: =D61 -> 0 | E65: =E61 -> 12.1488498 | G65: =IF(Information!$H$10="x",'Panel Calculations'!D65,0) -> 0 | H65: =IF(Information!$H$10="x",'Panel Calculations'!E65,0) -> 12.1488498 | J65: 0 | K65: 2 | L65: =(J65^2+K65^2)^0.5 -> 2
B67: Panel G | C67: (sides) | D67: =D3 -> 0 | E67: =E3 -> 0 | G67: =IF(Information!$H$11="x",'Panel Calculations'!D67,0) -> 0 | H67: =IF(Information!$H$11="x",'Panel Calculations'!E67,0) -> 0
D68: =D67+Information!D11 -> 35.56 | E68: =E67 -> 0 | G68: =IF(Information!$H$11="x",'Panel Calculations'!D68,0) -> 35.56 | H68: =IF(Information!$H$11="x",'Panel Calculations'!E68,0) -> 0 | J68: =D67-D68 -> -35.56 | K68: 0 | L68: =(J68^2+K68^2)^0.5 -> 35.56
D69: =D68 -> 35.56 | E69: =E68+Information!D12 -> 86.36 | G69: =IF(Information!$H$11="x",'Panel Calculations'!D69,0) -> 35.56 | H69: =IF(Information!$H$11="x",'Panel Calculations'!E69,0) -> 86.36 | J69: 0 | K69: -86.36 | L69: =(J69^2+K69^2)^0.5 -> 86.36
D70: =D67 -> 0 | E70: =E69 -> 86.36 | G70: =IF(Information!$H$11="x",'Panel Calculations'!D70,0) -> 0 | H70: =IF(Information!$H$11="x",'Panel Calculations'!E70,0) -> 86.36 | J70: 35.56 | K70: 0 | L70: =(J70^2+K70^2)^0.5 -> 35.56
D71: =D67 -> 0 | E71: =E67 -> 0 | G71: =IF(Information!$H$11="x",'Panel Calculations'!D71,0) -> 0 | H71: =IF(Information!$H$11="x",'Panel Calculations'!E71,0) -> 0 | J71: 0 | K71: 86.36 | L71: =(J71^2+K71^2)^0.5 -> 86.36
B73: Panel H | C73: (port separator) | D73: =D43 -> 0 | E73: =E43 -> 2 | G73: =IF(Information!$H$12="x",'Panel Calculations'!D73,0) -> 0 | H73: =IF(Information!$H$12="x",'Panel Calculations'!E73,0) -> 2
D74: =D50 -> 33.56 | E74: =E73 -> 2 | G74: =IF(Information!$H$12="x",'Panel Calculations'!D74,0) -> 33.56 | H74: =IF(Information!$H$12="x",'Panel Calculations'!E74,0) -> 2 | J74: =D73-D74 -> -33.56 | K74: =E73-E74 -> 0 | L74: =(J74^2+K74^2)^0.5 -> 33.56
D75: =D74 -> 33.56 | E75: =E62 -> 12.1488498 | G75: =IF(Information!$H$12="x",'Panel Calculations'!D75,0) -> 33.56 | H75: =IF(Information!$H$12="x",'Panel Calculations'!E75,0) -> 12.1488498 | J75: 0 | K75: -10.1488498 | L75: =(J75^2+K75^2)^0.5 -> 10.1488498
D76: =D73 -> 0 | E76: =E75 -> 12.1488498 | G76: =IF(Information!$H$12="x",'Panel Calculations'!D76,0) -> 0 | H76: =IF(Information!$H$12="x",'Panel Calculations'!E76,0) -> 12.1488498 | J76: 33.56 | K76: 0 | L76: =(J76^2+K76^2)^0.5 -> 33.56
D77: =D73 -> 0 | E77: =E73 -> 2 | G77: =IF(Information!$H$12="x",'Panel Calculations'!D77,0) -> 0 | H77: =IF(Information!$H$12="x",'Panel Calculations'!E77,0) -> 2 | J77: 0 | K77: 10.1488498 | L77: =(J77^2+K77^2)^0.5 -> 10.1488498
B80: Profile View
D81: =D68+10 -> 45.56 | E81: =E67 -> 0 | G81: =IF(Information!$H$14="x",'Panel Calculations'!D81,"") -> 45.56 | H81: =IF(Information!$H$14="x",'Panel Calculations'!E81,"") -> 0
D82: =D81+Information!D13 -> 81.12 | E82: =E81 -> 0 | G82: =IF(Information!$H$14="x",'Panel Calculations'!D82,"") -> 81.12 | H82: =IF(Information!$H$14="x",'Panel Calculations'!E82,"") -> 0 | J82: =D81-D82 -> -35.56 | K82: =E81-E82 -> 0 | L82: =(J82^2+K82^2)^0.5 -> 35.56
D83: =D82 -> 81.12 | E83: =E69 -> 86.36 | G83: =IF(Information!$H$14="x",'Panel Calculations'!D83,"") -> 81.12 | H83: =IF(Information!$H$14="x",'Panel Calculations'!E83,"") -> 86.36 | J83: 0 | K83: -86.36 | L83: =(J83^2+K83^2)^0.5 -> 86.36
D84: =D81 -> 45.56 | E84: =E83 -> 86.36 | G84: =IF(Information!$H$14="x",'Panel Calculations'!D84,"") -> 45.56 | H84: =IF(Information!$H$14="x",'Panel Calculations'!E84,"") -> 86.36 | J84: 35.56 | K84: 0 | L84: =(J84^2+K84^2)^0.5 -> 35.56
D85: =D81 -> 45.56 | E85: =E81 -> 0 | G85: =IF(Information!$H$14="x",'Panel Calculations'!D85,"") -> 45.56 | H85: =IF(Information!$H$14="x",'Panel Calculations'!E85,"") -> 0 | J85: 0 | K85: 86.36 | L85: =(J85^2+K85^2)^0.5 -> 86.36
D87: =D81 -> 45.56 | E87: =E81 -> 0 | G87: =IF(Information!$H$14="x",'Panel Calculations'!D87,"") -> 45.56 | H87: =IF(Information!$H$14="x",'Panel Calculations'!E87,"") -> 0
D88: =D87+Information!D50 -> 47.56 | E88: =E87 -> 0 | G88: =IF(Information!$H$14="x",'Panel Calculations'!D88,"") -> 47.56 | H88: =IF(Information!$H$14="x",'Panel Calculations'!E88,"") -> 0 | J88: =D87-D88 -> -2 | K88: =E87-E88 -> 0 | L88: =(J88^2+K88^2)^0.5 -> 2
D89: =D88 -> 47.56 | E89: =E83 -> 86.36 | G89: =IF(Information!$H$14="x",'Panel Calculations'!D89,"") -> 47.56 | H89: =IF(Information!$H$14="x",'Panel Calculations'!E89,"") -> 86.36 | J89: 0 | K89: -86.36 | L89: =(J89^2+K89^2)^0.5 -> 86.36
D90: =D87 -> 45.56 | E90: =E89 -> 86.36 | G90: =IF(Information!$H$14="x",'Panel Calculations'!D90,"") -> 45.56 | H90: =IF(Information!$H$14="x",'Panel Calculations'!E90,"") -> 86.36 | J90: 2 | K90: 0 | L90: =(J90^2+K90^2)^0.5 -> 2
D91: =D87 -> 45.56 | E91: =E87 -> 0 | G91: =IF(Information!$H$14="x",'Panel Calculations'!D91,"") -> 45.56 | H91: =IF(Information!$H$14="x",'Panel Calculations'!E91,"") -> 0 | J91: 0 | K91: 86.36 | L91: =(J91^2+K91^2)^0.5 -> 86.36
D93: =D82-Information!D50 -> 79.12 | E93: =E82 -> 0 | G93: =IF(Information!$H$14="x",'Panel Calculations'!D93,"") -> 79.12 | H93: =IF(Information!$H$14="x",'Panel Calculations'!E93,"") -> 0
D94: =D82 -> 81.12 | E94: =E93 -> 0 | G94: =IF(Information!$H$14="x",'Panel Calculations'!D94,"") -> 81.12 | H94: =IF(Information!$H$14="x",'Panel Calculations'!E94,"") -> 0 | J94: =D93-D94 -> -2 | K94: =E93-E94 -> 0 | L94: =(J94^2+K94^2)^0.5 -> 2
D95: =D94 -> 81.12 | E95: =E89 -> 86.36 | G95: =IF(Information!$H$14="x",'Panel Calculations'!D95,"") -> 81.12 | H95: =IF(Information!$H$14="x",'Panel Calculations'!E95,"") -> 86.36 | J95: 0 | K95: -86.36 | L95: =(J95^2+K95^2)^0.5 -> 86.36
D96: =D93 -> 79.12 | E96: =E95 -> 86.36 | G96: =IF(Information!$H$14="x",'Panel Calculations'!D96,"") -> 79.12 | H96: =IF(Information!$H$14="x",'Panel Calculations'!E96,"") -> 86.36 | J96: 2 | K96: 0 | L96: =(J96^2+K96^2)^0.5 -> 2
D97: =D93 -> 79.12 | E97: =E93 -> 0 | G97: =IF(Information!$H$14="x",'Panel Calculations'!D97,"") -> 79.12 | H97: =IF(Information!$H$14="x",'Panel Calculations'!E97,"") -> 0 | J97: 0 | K97: 86.36 | L97: =(J97^2+K97^2)^0.5 -> 86.36
D99: =D88 -> 47.56 | E99: =E88 -> 0 | G99: =IF(Information!$H$14="x",'Panel Calculations'!D99,"") -> 47.56 | H99: =IF(Information!$H$14="x",'Panel Calculations'!E99,"") -> 0
D100: =D88 -> 47.56 | E100: =E99+Information!D46 -> 2 | G100: =IF(Information!$H$14="x",'Panel Calculations'!D100,"") -> 47.56 | H100: =IF(Information!$H$14="x",'Panel Calculations'!E100,"") -> 2 | J100: =D99-D100 -> 0 | K100: =E99-E100 -> -2 | L100: =(J100^2+K100^2)^0.5 -> 2
D101: =D93 -> 79.12 | E101: =E100 -> 2 | G101: =IF(Information!$H$14="x",'Panel Calculations'!D101,"") -> 79.12 | H101: =IF(Information!$H$14="x",'Panel Calculations'!E101,"") -> 2 | J101: -31.56 | K101: 0 | L101: =(J101^2+K101^2)^0.5 -> 31.56
D102: =D101 -> 79.12 | E102: =E99 -> 0 | G102: =IF(Information!$H$14="x",'Panel Calculations'!D102,"") -> 79.12 | H102: =IF(Information!$H$14="x",'Panel Calculations'!E102,"") -> 0 | J102: 0 | K102: 2 | L102: =(J102^2+K102^2)^0.5 -> 2
D103: =D99 -> 47.56 | E103: =E99 -> 0 | G103: =IF(Information!$H$14="x",'Panel Calculations'!D103,"") -> 47.56 | H103: =IF(Information!$H$14="x",'Panel Calculations'!E103,"") -> 0 | J103: 31.56 | K103: 0 | L103: =(J103^2+K103^2)^0.5 -> 31.56
D105: =D99 -> 47.56 | E105: =E89 -> 86.36 | G105: =IF(Information!$H$14="x",'Panel Calculations'!D105,"") -> 47.56 | H105: =IF(Information!$H$14="x",'Panel Calculations'!E105,"") -> 86.36
D106: =D96 -> 79.12 | E106: =E105+Information!D54 -> 86.36 | G106: =IF(Information!$H$14="x",'Panel Calculations'!D106,"") -> 79.12 | H106: =IF(Information!$H$14="x",'Panel Calculations'!E106,"") -> 86.36 | J106: =D105-D106 -> -31.56 | K106: =E105-E106 -> 0 | L106: =(J106^2+K106^2)^0.5 -> 31.56
D107: =D106 -> 79.12 | E107: =E106-Information!D46 -> 84.36 | G107: =IF(Information!$H$14="x",'Panel Calculations'!D107,"") -> 79.12 | H107: =IF(Information!$H$14="x",'Panel Calculations'!E107,"") -> 84.36 | J107: 0 | K107: 2 | L107: =(J107^2+K107^2)^0.5 -> 2
D108: =D105 -> 47.56 | E108: =E107 -> 84.36 | G108: =IF(Information!$H$14="x",'Panel Calculations'!D108,"") -> 47.56 | H108: =IF(Information!$H$14="x",'Panel Calculations'!E108,"") -> 84.36 | J108: 31.56 | K108: 0 | L108: =(J108^2+K108^2)^0.5 -> 31.56
D109: =D105 -> 47.56 | E109: =E105 -> 86.36 | G109: =IF(Information!$H$14="x",'Panel Calculations'!D109,"") -> 47.56 | H109: =IF(Information!$H$14="x",'Panel Calculations'!E109,"") -> 86.36 | J109: 0 | K109: -2 | L109: =(J109^2+K109^2)^0.5 -> 2
D111: =D105 -> 47.56 | E111: =E61 -> 12.1488498 | G111: =IF(Information!$H$14="x",'Panel Calculations'!D111,"") -> 47.56 | H111: =IF(Information!$H$14="x",'Panel Calculations'!E111,"") -> 12.1488498
D112: =D102 -> 79.12 | E112: =E111 -> 12.1488498 | G112: =IF(Information!$H$14="x",'Panel Calculations'!D112,"") -> 79.12 | H112: =IF(Information!$H$14="x",'Panel Calculations'!E112,"") -> 12.1488498 | J112: =D111-D112 -> -31.56 | K112: =E111-E112 -> 0 | L112: =(J112^2+K112^2)^0.5 -> 31.56
D113: =D112 -> 79.12 | E113: =E63 -> 14.1488498 | G113: =IF(Information!$H$14="x",'Panel Calculations'!D113,"") -> 79.12 | H113: =IF(Information!$H$14="x",'Panel Calculations'!E113,"") -> 14.1488498 | J113: 0 | K113: -2 | L113: =(J113^2+K113^2)^0.5 -> 2
D114: =D111 -> 47.56 | E114: =E113 -> 14.1488498 | G114: =IF(Information!$H$14="x",'Panel Calculations'!D114,"") -> 47.56 | H114: =IF(Information!$H$14="x",'Panel Calculations'!E114,"") -> 14.1488498 | J114: 31.56 | K114: 0 | L114: =(J114^2+K114^2)^0.5 -> 31.56
D115: =D111 -> 47.56 | E115: =E111 -> 12.1488498 | G115: =IF(Information!$H$14="x",'Panel Calculations'!D115,"") -> 47.56 | H115: =IF(Information!$H$14="x",'Panel Calculations'!E115,"") -> 12.1488498 | J115: 0 | K115: 2 | L115: =(J115^2+K115^2)^0.5 -> 2
D117: =(D89+D101-Information!D51)/2 -> 62.34 | E117: =E101 -> 2 | G117: =IF(Information!$H$14="x",'Panel Calculations'!D117,"") -> 62.34 | H117: =IF(Information!$H$14="x",'Panel Calculations'!E117,"") -> 2
D118: =D117+Information!D51 -> 64.34 | E118: =E117 -> 2 | G118: =IF(Information!$H$14="x",'Panel Calculations'!D118,"") -> 64.34 | H118: =IF(Information!$H$14="x",'Panel Calculations'!E118,"") -> 2 | J118: =D117-D118 -> -2 | K118: =E117-E118 -> 0 | L118: =(J118^2+K118^2)^0.5 -> 2
D119: =D118 -> 64.34 | E119: =E75 -> 12.1488498 | G119: =IF(Information!$H$14="x",'Panel Calculations'!D119,"") -> 64.34 | H119: =IF(Information!$H$14="x",'Panel Calculations'!E119,"") -> 12.1488498 | J119: 0 | K119: -10.1488498 | L119: =(J119^2+K119^2)^0.5 -> 10.1488498
D120: =D117 -> 62.34 | E120: =E119 -> 12.1488498 | G120: =IF(Information!$H$14="x",'Panel Calculations'!D120,"") -> 62.34 | H120: =IF(Information!$H$14="x",'Panel Calculations'!E120,"") -> 12.1488498 | J120: 2 | K120: 0 | L120: =(J120^2+K120^2)^0.5 -> 2
D121: =D117 -> 62.34 | E121: =E117 -> 2 | G121: =IF(Information!$H$14="x",'Panel Calculations'!D121,"") -> 62.34 | H121: =IF(Information!$H$14="x",'Panel Calculations'!E121,"") -> 2 | J121: 0 | K121: 10.1488498 | L121: =(J121^2+K121^2)^0.5 -> 10.1488498

Sheet Path Calculations
O1: Expansion | P1: Cos | Q1: Sin | R1: Tan
O2: =Information!F41 -> 13.16870016 | P2: =COS(O2*PI()/180) -> 0.9737035023 | Q2: =SIN(O2*PI()/180) -> 0.2278189843 | R2: =TAN(O2*PI()/180) -> 0.2339716184
O3: =O2/2 -> 6.584350082 | P3: =COS(O3*PI()/(180*2)) -> 0.9983496689 | Q3: =SIN(O3*PI()/(180*2)) -> 0.05742768158 | R3: =TAN(O3*PI()/(180*2)) -> 0.05752261294
B4: Path Calculations | D4: x | E4: y | G4: x | H4: y | J4: d | K4: x | L4: y | M4: dS | N4: d | O4: L | P4: S | Y4: Intersection points | Z4: x1 | AA4: y1 | AB4: x2 | AC4: y2 | AD4: a | AE4: b | AF4: x | AG4: y
D6: ='Panel Calculations'!D55 -> 33.56 | E6: ='Panel Calculations'!E55 -> 24.62531171 | G6: =IF(Information!$H$18="x",D6,0) -> 33.56 | H6: =IF(Information!$H$18="x",E6,0) -> 24.62531171 | I6: =SUM(D6:D7)/2 -> 33.56 | J6: =SUM(E6:E7)/2 -> 24.62531171 | K6: =IF(Information!$H$17="x",I6,0) -> 33.56 | L6: =IF(Information!$H$17="x",J6,0) -> 24.62531171 | N6: =N5 -> 0 | O6: 0 | P6: =P5 -> 0 | Y6: Path 9-10 | Z6: =I30 -> 12.37001446 | AA6: =J30 -> 70.15858847 | AB6: =I33 -> 18.78 | AC6: =J33 -> 14.99763093 | AD6: =(AC6-AA6)/(AB6-Z6) -> -8.60547301 | AE6: =(AC6*Z6-AA6*AB6)/(Z6-AB6) -> 176.6084141
B7: S1 | C7: =C2+1 -> 1 | D7: ='Panel Calculations'!D55 -> 33.56 | E7: ='Panel Calculations'!E55 -> 24.62531171 | G7: =IF(Information!$H$18="x",D7,0) -> 33.56 | H7: =IF(Information!$H$18="x",E7,0) -> 24.62531171 | K7: =K6 -> 33.56 | L7: =L6 -> 24.62531171 | N7: =N6 -> 0 | O7: =O6 -> 0 | P7: 0 | Y7: Driver | Z7: ='Panel Calculations'!D14 -> 2 | AA7: ='Panel Calculations'!E14 -> 63.86 | AB7: ='Panel Calculations'!D15 -> 12.7 | AC7: ='Panel Calculations'!E15 -> 63.86 | AD7: =(AC7-AA7)/(AB7-Z7) -> 0 | AE7: =(AC7*Z7-AA7*AB7)/(Z7-AB7) -> 63.86 | AF7: =(AE6-AE7)/(AD7-AD6) -> 13.10194267 | AG7: =AF7*AD7+AE7 -> 63.86
K8: =K7 -> 33.56 | L8: =L7 -> 24.62531171 | N8: 0 | O8: =O5+N8 -> 0 | P8: =(((D6-D7)^2+(E6-E7)^2)^0.5)*Information!$D$20 -> 0 | Q8: =P8/2 -> 0 | R8: =-Q8 -> 0 | S8: =(Q8-T8)*2 -> 0 | T8: =(($E$67-$E$66)*(O8-$F$66)/($F$67-$F$66)+$E$66)/2 -> 0 | U8: =-T8 -> 0 | V8: =IF(C7>0,L8,"") -> 24.62531171
D9: ='Panel Calculations'!D56 -> 22.68743593 | E9: ='Panel Calculations'!E56 -> 71.09489697 | G9: =IF(Information!$H$18="x",D9,0) -> 22.68743593 | H9: =IF(Information!$H$18="x",E9,0) -> 71.09489697 | I9: =SUM(D9:D10)/2 -> 28.12371796 | J9: =SUM(E9:E10)/2 -> 71.40709004 | K9: =IF(Information!$H$17="x",I9,0) -> 28.12371796 | L9: =IF(Information!$H$17="x",J9,0) -> 71.40709004 | N9: =N8 -> 0 | O9: 0 | P9: =P8 -> 0 | Q9: =P9/2 -> 0 | R9: =-Q9 -> 0 | S9: =(Q9-T9)*2 -> 0 | T9: =(($E$67-$E$66)*(O9-$F$66)/($F$67-$F$66)+$E$66)/2 -> 0 | U9: =-T9 -> 0 | V9: =IF(C10>0,L9,"") -> 71.40709004 | Y9: Sample point | Z9: ='Panel Calculations'!D51 -> 33.56 | AA9: ='Panel Calculations'!E51 -> 84.36 | AB9: =Z9+10*'Panel Calculations'!Q23 -> 34.13427682 | AC9: =AA9+10*'Panel Calculations'!P23 -> 94.34349669 | AD9: =(AC9-AA9)/(AB9-Z9) -> 17.38446758 | AE9: =(AC9*Z9-AA9*AB9)/(Z9-AB9) -> -499.0627321
C10: =C7+1 -> 2 | D10: =D7 -> 33.56 | E10: =E9+(D10-D9)*Q3 -> 71.71928311 | G10: =IF(Information!$H$18="x",D10,0) -> 33.56 | H10: =IF(Information!$H$18="x",E10,0) -> 71.71928311 | K10: =K9 -> 28.12371796 | L10: =L9 -> 71.40709004 | N10: =N9 -> 0 | O10: 0 | P10: =P9 -> 0 | Q10: 0 | R10: 0 | S10: 0 | T10: =(($E$67-$E$66)*(O10-$F$66)/($F$67-$F$66)+$E$66)/2 -> 0 | U10: 0 | V10: =IF(C10>0,L10,"") -> 71.40709004 | Y10: Panel E | Z10: ='Panel Calculations'!D55 -> 33.56 | AA10: ='Panel Calculations'!E55 -> 24.62531171 | AB10: ='Panel Calculations'!D56 -> 22.68743593 | AC10: ='Panel Calculations'!E56 -> 71.09489697 | AD10: =(AC10-AA10)/(AB10-Z10) -> -4.274022664 | AE10: =(AC10*Z10-AA10*AB10)/(Z10-AB10) -> 168.0615123 | AF10: =(AE9-AE10)/(AD10-AD9) -> 30.80197358 | AG10: =AF10*AD10+AE10 -> 36.41317913
K11: =K10 -> 28.12371796 | L11: =L10 -> 71.40709004 | N11: =((I9-I6)^2+(J9-J6)^2)^0.5 -> 47.09658105 | O11: =O8+N11 -> 47.09658105 | P11: =(((D9-D10)^2+(E9-E10)^2)^0.5)*Information!$D$20 -> 343.7034806 | Q11: 171.8517403 | R11: -171.8517403 | S11: -0.0001148161843 | T11: =(($E$67-$E$66)*(O11-$F$66)/($F$67-$F$66)+$E$66)/2 -> 171.8517977 | U11: -171.8517977 | V11: =IF(C10>0,L11,"") -> 71.40709004
D12: ='Panel Calculations'!D56 -> 22.68743593 | E12: ='Panel Calculations'!E56 -> 71.09489697 | G12: =IF(Information!$H$18="x",D12,0) -> 22.68743593 | H12: =IF(Information!$H$18="x",E12,0) -> 71.09489697 | I12: =SUM(D12:D13)/2 -> 28.12371796 | J12: =SUM(E12:E13)/2 -> 74.56726926 | K12: =IF(Information!$H$17="x",I12,0) -> 28.12371796 | L12: =IF(Information!$H$17="x",J12,0) -> 74.56726926 | N12: =N11 -> 47.09658105 | O12: 47.09658105 | P12: =P11 -> 343.7034806 | Q12: =P12/2 -> 171.8517403 | R12: =-Q12 -> -171.8517403 | S12: =(Q12-T12)*2 -> -0.0001148161843 | T12: =(($E$67-$E$66)*(O12-$F$66)/($F$67-$F$66)+$E$66)/2 -> 171.8517977 | U12: =-T12 -> -171.8517977 | V12: =IF(C13>0,L12,"") -> 74.56726926 | Y12: L23 | Z12: =((AB6-AF7)^2+(AC6-AG7)^2)^0.5 -> 49.19117244
C13: =C10+1 -> 3 | D13: =D10 -> 33.56 | E13: =(E10+'Panel Calculations'!E51)/2 -> 78.03964156 | G13: =IF(Information!$H$18="x",D13,0) -> 33.56 | H13: =IF(Information!$H$18="x",E13,0) -> 78.03964156 | K13: =K12 -> 28.12371796 | L13: =L12 -> 74.56726926 | N13: =N12 -> 47.09658105 | O13: 47.09658105 | P13: =P12 -> 343.7034806 | Q13: 171.8517403 | R13: -171.8517403 | S13: -0.0001148161843 | T13: =(($E$67-$E$66)*(O13-$F$66)/($F$67-$F$66)+$E$66)/2 -> 171.8517977 | U13: -171.8517977 | V13: =IF(C13>0,L13,"") -> 74.56726926
K14: =K13 -> 28.12371796 | L14: =L13 -> 74.56726926 | N14: =((I12-I9)^2+(J12-J9)^2)^0.5 -> 3.160179221 | O14: =O11+N14 -> 50.25676027 | P14: =(((D12-D13)^2+(E12-E13)^2)^0.5)*Information!$D$20 -> 407.1632975 | Q14: 203.5816488 | R14: -203.5816488 | S14: 40.39720086 | T14: =(($E$67-$E$66)*(O14-$F$66)/($F$67-$F$66)+$E$66)/2 -> 183.3830483 | U14: -183.3830483 | V14: =IF(C13>0,L14,"") -> 74.56726926
D15: =D12 -> 22.68743593 | E15: =E12 -> 71.09489697 | G15: =IF(Information!$H$18="x",D15,0) -> 22.68743593 | H15: =IF(Information!$H$18="x",E15,0) -> 71.09489697 | I15: =SUM(D15:D16)/2 -> 25.21513092 | J15: =SUM(E15:E16)/2 -> 77.72744848 | K15: =IF(Information!$H$17="x",I15,0) -> 25.21513092 | L15: =IF(Information!$H$17="x",J15,0) -> 77.72744848 | N15: =N14 -> 3.160179221 | O15: =O14 -> 50.25676027 | P15: 407.1632975 | Q15: 203.5816488 | R15: -203.5816488 | S15: 40.39720086 | T15: =(($E$67-$E$66)*(O15-$F$66)/($F$67-$F$66)+$E$66)/2 -> 183.3830483 | U15: -183.3830483 | V15: =IF(C16>0,L15,"") -> 77.72744848
C16: =C13+1 -> 4 | D16: =(D13+D19)/2 -> 27.74282591 | E16: ='Panel Calculations'!E51 -> 84.36 | G16: =IF(Information!$H$18="x",D16,0) -> 27.74282591 | H16: =IF(Information!$H$18="x",E16,0) -> 84.36 | K16: =K15 -> 25.21513092 | L16: =L15 -> 77.72744848 | N16: =N15 -> 3.160179221 | O16: =O15 -> 50.25676027 | P16: 407.1632975 | Q16: 203.5816488 | R16: -203.5816488 | S16: 40.39720086 | T16: =(($E$67-$E$66)*(O16-$F$66)/($F$67-$F$66)+$E$66)/2 -> 183.3830483 | U16: -183.3830483 | V16: =IF(C16>0,L16,"") -> 77.72744848
K17: =K16 -> 25.21513092 | L17: =L16 -> 77.72744848 | N17: =((I15-I12)^2+(J15-J12)^2)^0.5 -> 4.294951841 | O17: =O14+N17 -> 54.55171211 | P17: =(((D15-D16)^2+(E15-E16)^2)^0.5)*Information!$D$20 -> 448.0185461 | Q17: 224.0092731 | R17: -224.0092731 | S17: 49.90855238 | T17: =(($E$67-$E$66)*(O17-$F$66)/($F$67-$F$66)+$E$66)/2 -> 199.0549969 | U17: -199.0549969 | V17: =IF(C16>0,L17,"") -> 77.72744848
D18: =D15 -> 22.68743593 | E18: =E15 -> 71.09489697 | G18: =IF(Information!$H$18="x",D18,0) -> 22.68743593 | H18: =IF(Information!$H$18="x",E18,0) -> 71.09489697 | I18: =SUM(D18:D19)/2 -> 22.30654387 | J18: =SUM(E18:E19)/2 -> 77.72744848 | K18: =IF(Information!$H$17="x",I18,0) -> 22.30654387 | L18: =IF(Information!$H$17="x",J18,0) -> 77.72744848 | N18: =N17 -> 4.294951841 | O18: =O17 -> 54.55171211 | P18: 448.0185461 | Q18: 224.0092731 | R18: -224.0092731 | S18: 49.90855238 | T18: =(($E$67-$E$66)*(O18-$F$66)/($F$67-$F$66)+$E$66)/2 -> 199.0549969 | U18: -199.0549969 | V18: =IF(C19>0,L18,"") -> 77.72744848
C19: =C16+1 -> 5 | D19: =D18-(E19-E18)*Q3 -> 21.92565182 | E19: =E16 -> 84.36 | G19: =IF(Information!$H$18="x",D19,0) -> 21.92565182 | H19: =IF(Information!$H$18="x",E19,0) -> 84.36 | K19: =K18 -> 22.30654387 | L19: =L18 -> 77.72744848 | N19: =N18 -> 4.294951841 | O19: =O18 -> 54.55171211 | P19: 448.0185461 | Q19: 224.0092731 | R19: -224.0092731 | S19: 49.90855238 | T19: =(($E$67-$E$66)*(O19-$F$66)/($F$67-$F$66)+$E$66)/2 -> 199.0549969 | U19: -199.0549969 | V19: =IF(C19>0,L19,"") -> 77.72744848
K20: =K19 -> 22.30654387 | L20: =L19 -> 77.72744848 | N20: =((I18-I15)^2+(J18-J15)^2)^0.5 -> 2.908587046 | O20: =O17+N20 -> 57.46029916 | P20: =(((D18-D19)^2+(E18-E19)^2)^0.5)*Information!$D$20 -> 419.336419 | Q20: 209.6682095 | R20: -209.6682095 | S20: 4.880202198e-06 | T20: =(($E$67-$E$66)*(O20-$F$66)/($F$67-$F$66)+$E$66)/2 -> 209.668207 | U20: -209.668207 | V20: =IF(C19>0,L20,"") -> 77.72744848
D21: ='Panel Calculations'!D57 -> 20.74002892 | E21: ='Panel Calculations'!E57 -> 70.639259 | G21: =IF(Information!$H$18="x",D21,0) -> 20.74002892 | H21: =IF(Information!$H$18="x",E21,0) -> 70.639259 | I21: =SUM(D21:D22)/2 -> 20.34605375 | J21: =SUM(E21:E22)/2 -> 77.4996295 | K21: =IF(Information!$H$17="x",I21,0) -> 20.34605375 | L21: =IF(Information!$H$17="x",J21,0) -> 77.4996295 | N21: =N20 -> 2.908587046 | O21: 57.46029916 | P21: 419.336419 | Q21: 209.6682095 | R21: -209.6682095 | S21: 4.880202198e-06 | T21: =(($E$67-$E$66)*(O21-$F$66)/($F$67-$F$66)+$E$66)/2 -> 209.668207 | U21: -209.668207 | V21: =IF(C22>0,L21,"") -> 77.4996295
C22: =C19+1 -> 6 | D22: =D21-(E22-E21)*Q3 -> 19.95207858 | E22: =E19 -> 84.36 | G22: =IF(Information!$H$18="x",D22,0) -> 19.95207858 | H22: =IF(Information!$H$18="x",E22,0) -> 84.36 | K22: =K21 -> 20.34605375 | L22: =L21 -> 77.4996295 | N22: =N21 -> 2.908587046 | O22: 57.46029916 | P22: 419.336419 | Q22: 209.6682095 | R22: -209.6682095 | S22: 4.880202198e-06 | T22: =(($E$67-$E$66)*(O22-$F$66)/($F$67-$F$66)+$E$66)/2 -> 209.668207 | U22: -209.668207 | V22: =IF(C22>0,L22,"") -> 77.4996295
K23: =K22 -> 20.34605375 | L23: =L22 -> 77.4996295 | N23: =((I21-I18)^2+(J21-J18)^2)^0.5 -> 1.973682599 | O23: =O20+N23 -> 59.43398176 | P23: =(((D21-D22)^2+(E21-E22)^2)^0.5)*Information!$D$20 -> 433.7400458 | Q23: 216.8700229 | R23: -216.8700229 | S23: 6.858522283e-08 | T23: =(($E$67-$E$66)*(O23-$F$66)/($F$67-$F$66)+$E$66)/2 -> 216.8700229 | U23: -216.8700229 | V23: =IF(C22>0,L23,"") -> 77.4996295
D24: =D21 -> 20.74002892 | E24: =E21 -> 70.639259 | G24: =IF(Information!$H$18="x",D24,0) -> 20.74002892 | H24: =IF(Information!$H$18="x",E24,0) -> 70.639259 | I24: =SUM(D24:D25)/2 -> 16.35803411 | J24: =SUM(E24:E25)/2 -> 77.4996295 | K24: =IF(Information!$H$17="x",I24,0) -> 16.35803411 | L24: =IF(Information!$H$17="x",J24,0) -> 77.4996295 | N24: =N23 -> 1.973682599 | O24: 59.43398176 | P24: 433.7400458 | Q24: 216.8700229 | R24: -216.8700229 | S24: 6.858522283e-08 | T24: =(($E$67-$E$66)*(O24-$F$66)/($F$67-$F$66)+$E$66)/2 -> 216.8700229 | U24: -216.8700229 | V24: =IF(C25>0,L24,"") -> 77.4996295
C25: =C22+1 -> 7 | D25: =('Panel Calculations'!D33+D22)/2 -> 11.97603929 | E25: =E22 -> 84.36 | G25: =IF(Information!$H$18="x",D25,0) -> 11.97603929 | H25: =IF(Information!$H$18="x",E25,0) -> 84.36 | K25: =K24 -> 16.35803411 | L25: =L24 -> 77.4996295 | N25: =N24 -> 1.973682599 | O25: 59.43398176 | P25: 433.7400458 | Q25: 216.8700229 | R25: -216.8700229 | S25: 6.858522283e-08 | T25: =(($E$67-$E$66)*(O25-$F$66)/($F$67-$F$66)+$E$66)/2 -> 216.8700229 | U25: -216.8700229 | V25: =IF(C25>0,L25,"") -> 77.4996295
K26: =K25 -> 16.35803411 | L26: =L25 -> 77.4996295 | N26: =((I24-I21)^2+(J24-J21)^2)^0.5 -> 3.988019645 | O26: =O23+N26 -> 63.4220014 | P26: =(((D24-D25)^2+(E24-E25)^2)^0.5)*Information!$D$20 -> 513.823792 | Q26: 256.911896 | R26: -256.911896 | S26: 50.97979302 | T26: =(($E$67-$E$66)*(O26-$F$66)/($F$67-$F$66)+$E$66)/2 -> 231.4219995 | U26: -231.4219995 | V26: =IF(C25>0,L26,"") -> 77.4996295
D27: =D24 -> 20.74002892 | E27: =E24 -> 70.639259 | G27: =IF(Information!$H$18="x",D27,0) -> 20.74002892 | H27: =IF(Information!$H$18="x",E27,0) -> 70.639259 | I27: =SUM(D27:D28)/2 -> 12.37001446 | J27: =SUM(E27:E28)/2 -> 73.82910899 | K27: =IF(Information!$H$17="x",I27,0) -> 12.37001446 | L27: =IF(Information!$H$17="x",J27,0) -> 73.82910899 | N27: =N26 -> 3.988019645 | O27: 63.4220014 | P27: 513.823792 | Q27: 256.911896 | R27: -256.911896 | S27: 50.97979302 | T27: =(($E$67-$E$66)*(O27-$F$66)/($F$67-$F$66)+$E$66)/2 -> 231.4219995 | U27: -231.4219995 | V27: =IF(C28>0,L27,"") -> 73.82910899
C28: =C25+1 -> 8 | D28: =D31 -> 4 | E28: =(E25+E31)/2 -> 77.01895897 | G28: =IF(Information!$H$18="x",D28,0) -> 4 | H28: =IF(Information!$H$18="x",E28,0) -> 77.01895897 | K28: =K27 -> 12.37001446 | L28: =L27 -> 73.82910899 | N28: =N27 -> 3.988019645 | O28: 63.4220014 | P28: 513.823792 | Q28: 256.911896 | R28: -256.911896 | S28: 50.97979302 | T28: =(($E$67-$E$66)*(O28-$F$66)/($F$67-$F$66)+$E$66)/2 -> 231.4219995 | U28: -231.4219995 | V28: =IF(C28>0,L28,"") -> 73.82910899
K29: =K28 -> 12.37001446 | L29: =L28 -> 73.82910899 | N29: =((I27-I24)^2+(J27-J24)^2)^0.5 -> 5.420057336 | O29: =O26+N29 -> 68.84205874 | P29: =(((D27-D28)^2+(E27-E28)^2)^0.5)*Information!$D$20 -> 565.3814702 | Q29: 282.6907351 | R29: -282.6907351 | S29: 62.9827275 | T29: =(($E$67-$E$66)*(O29-$F$66)/($F$67-$F$66)+$E$66)/2 -> 251.1993713 | U29: -251.1993713 | V29: =IF(C28>0,L29,"") -> 73.82910899
D30: =D27 -> 20.74002892 | E30: =E27 -> 70.639259 | G30: =IF(Information!$H$18="x",D30,0) -> 20.74002892 | H30: =IF(Information!$H$18="x",E30,0) -> 70.639259 | I30: =SUM(D30:D31)/2 -> 12.37001446 | J30: =SUM(E30:E31)/2 -> 70.15858847 | K30: =IF(Information!$H$17="x",I30,0) -> 12.37001446 | L30: =IF(Information!$H$17="x",J30,0) -> 70.15858847 | N30: =N29 -> 5.420057336 | O30: 68.84205874 | P30: 565.3814702 | Q30: 282.6907351 | R30: -282.6907351 | S30: 62.9827275 | T30: =(($E$67-$E$66)*(O30-$F$66)/($F$67-$F$66)+$E$66)/2 -> 251.1993713 | U30: -251.1993713 | V30: =IF(C31>0,L30,"") -> 70.15858847
C31: =C28+1 -> 9 | D31: ='Panel Calculations'!D33 -> 4 | E31: =E30-(D30-D31)*Q3 -> 69.67791795 | G31: =IF(Information!$H$18="x",D31,0) -> 4 | H31: =IF(Information!$H$18="x",E31,0) -> 69.67791795 | K31: =K30 -> 12.37001446 | L31: =L30 -> 70.15858847 | N31: =N30 -> 5.420057336 | O31: 68.84205874 | P31: 565.3814702 | Q31: 282.6907351 | R31: -282.6907351 | S31: 62.9827275 | T31: =(($E$67-$E$66)*(O31-$F$66)/($F$67-$F$66)+$E$66)/2 -> 251.1993713 | U31: -251.1993713 | V31: =IF(C31>0,L31,"") -> 70.15858847
K32: =K31 -> 12.37001446 | L32: =L31 -> 70.15858847 | N32: =((I30-I27)^2+(J30-J27)^2)^0.5 -> 3.670520513 | O32: =O29+N32 -> 72.51257925 | P32: =(((D30-D31)^2+(E30-E31)^2)^0.5)*Information!$D$20 -> 529.1857715 | Q32: 264.5928857 | R32: -264.5928857 | S32: 0.0001353811442 | T32: =(($E$67-$E$66)*(O32-$F$66)/($F$67-$F$66)+$E$66)/2 -> 264.592818 | U32: -264.592818 | V32: =IF(C31>0,L32,"") -> 70.15858847
D33: ='Panel Calculations'!D34 -> 4 | E33: ='Panel Calculations'!E34 -> 14.1488498 | G33: =IF(Information!$H$18="x",D33,0) -> 4 | H33: =IF(Information!$H$18="x",E33,0) -> 14.1488498 | I33: =SUM(D33:D34)/2 -> 18.78 | J33: =SUM(E33:E34)/2 -> 14.99763093 | K33: =IF(Information!$H$17="x",I33,0) -> 18.78 | L33: =IF(Information!$H$17="x",J33,0) -> 14.99763093 | N33: =N32 -> 3.670520513 | O33: 72.51257925 | P33: 529.1857715 | Q33: 264.5928857 | R33: -264.5928857 | S33: 0.0001353811442 | T33: =(($E$67-$E$66)*(O33-$F$66)/($F$67-$F$66)+$E$66)/2 -> 264.592818 | U33: -264.592818 | V33: =IF(C34>0,L33,"") -> 14.99763093 | Y33: Sample Point | Z33: ='Panel Calculations'!D57 -> 20.74002892 | AA33: ='Panel Calculations'!E57 -> 70.639259 | AB33: =Z33-10*'Panel Calculations'!Q23 -> 20.16575211 | AC33: =AA33-10*'Panel Calculations'!P23 -> 60.65576231 | AD33: =(AC33-AA33)/(AB33-Z33) -> 17.38446758 | AE33: =(AC33*Z33-AA33*AB33)/(Z33-AB33) -> -289.9151015
B34: S3 | C34: =C31+1 -> 10 | D34: =D6 -> 33.56 | E34: =E33+(D34-D33)*Q3 -> 15.84641206 | G34: =IF(Information!$H$18="x",D34,0) -> 33.56 | H34: =IF(Information!$H$18="x",E34,0) -> 15.84641206 | K34: =K33 -> 18.78 | L34: =L33 -> 14.99763093 | N34: =N33 -> 3.670520513 | O34: 72.51257925 | P34: 529.1857715 | Q34: 264.5928857 | R34: -264.5928857 | S34: 0.0001353811442 | T34: =(($E$67-$E$66)*(O34-$F$66)/($F$67-$F$66)+$E$66)/2 -> 264.592818 | U34: -264.592818 | V34: =IF(C34>0,L34,"") -> 14.99763093 | Y34: Sample Point | Z34: ='Panel Calculations'!D64 -> 0 | AA34: ='Panel Calculations'!E64 -> 14.1488498 | AB34: ='Panel Calculations'!D63 -> 23.4111502 | AC34: ='Panel Calculations'!E63 -> 14.1488498 | AD34: =(AC34-AA34)/(AB34-Z34) -> 0 | AE34: =(AC34*Z34-AA34*AB34)/(Z34-AB34) -> 14.1488498 | AF34: =(AE33-AE34)/(AD34-AD33) -> 17.49055298 | AG34: =AF34*AD34+AE34 -> 14.1488498
K35: =K34 -> 18.78 | L35: =L34 -> 14.99763093 | N35: =((I33-I30)^2+(J33-J30)^2)^0.5 -> 55.53214521 | O35: =O32+N35 -> 128.0447245 | P35: =(((D33-D34)^2+(E33-E34)^2)^0.5)*Information!$D$20 -> 934.4506796 | Q35: 467.2253398 | R35: -467.2253398 | S35: 0 | T35: =(($E$67-$E$66)*(O35-$F$66)/($F$67-$F$66)+$E$66)/2 -> 467.2253398 | U35: -467.2253398 | V35: =IF(C34>0,L35,"") -> 14.99763093
I36: =I39 -> 28.16093793 | J36: =J39 -> 15.53635645 | O36: =O35 -> 128.0447245 | P36: 934.4506796
O37: =O36 -> 128.0447245 | P37: 934.4506796
O38: =O35+N38 -> 128.0447245 | P38: =P37 -> 934.4506796
D39: =AF40 -> 28.16093793 | E39: =AG40 -> 15.53635645 | G39: =IF(Information!$H$18="x",D39,0) -> 28.16093793 | H39: =IF(Information!$H$18="x",E39,0) -> 15.53635645 | I39: =SUM(D39:D40)/2 -> 28.16093793 | J39: =SUM(E39:E40)/2 -> 15.53635645 | K39: =IF(Information!$H$17="x",I39,0) -> 28.16093793 | L39: =IF(Information!$H$17="x",J39,0) -> 15.53635645 | N39: =N38 -> 0 | O39: 128.0447245 | P39: =P36 -> 934.4506796 | Q39: 467.2253398 | R39: -467.2253398 | S39: 0 | T39: =(($E$67-$E$66)*(O39-$F$66)/($F$67-$F$66)+$E$66)/2 -> 467.2253398 | U39: -467.2253398 | V39: =IF(C40>0,L39,"") -> 15.53635645 | Y39: Sample Point | Z39: =I42 -> 28.4855751 | AA39: =J42 -> 14.1488498 | AB39: =Z39-10*Q2 -> 26.20738526 | AC39: =AA39+10*P2 -> 23.88588482 | AD39: =(AC39-AA39)/(AB39-Z39) -> -4.274022664 | AE39: =(AC39*Z39-AA39*AB39)/(Z39-AB39) -> 135.8968434
C40: =C34+1 -> 11 | D40: =AF40 -> 28.16093793 | E40: =AG40 -> 15.53635645 | G40: =IF(Information!$H$18="x",D40,0) -> 28.16093793 | H40: =IF(Information!$H$18="x",E40,0) -> 15.53635645 | K40: =K39 -> 28.16093793 | L40: =L39 -> 15.53635645 | N40: =N39 -> 0 | O40: 128.0447245 | P40: 934.4506796 | Q40: 467.2253398 | R40: -467.2253398 | S40: 0 | T40: =(($E$67-$E$66)*(O40-$F$66)/($F$67-$F$66)+$E$66)/2 -> 467.2253398 | U40: -467.2253398 | V40: =IF(C40>0,L40,"") -> 15.53635645 | Y40: Sample Point | Z40: =D33 -> 4 | AA40: =E33 -> 14.1488498 | AB40: =D34 -> 33.56 | AC40: =E34 -> 15.84641206 | AD40: =(AC40-AA40)/(AB40-Z40) -> 0.05742768158 | AE40: =(AC40*Z40-AA40*AB40)/(Z40-AB40) -> 13.91913907 | AF40: =(AE39-AE40)/(AD40-AD39) -> 28.16093793 | AG40: =AF40*AD40+AE40 -> 15.53635645
K41: =K40 -> 28.16093793 | L41: =L40 -> 15.53635645 | N41: =((I39-I36)^2+(J39-J36)^2)^0.5 -> 0 | O41: =O38+N41 -> 128.0447245 | P41: =P40 -> 934.4506796 | Q41: 467.2253398 | R41: -467.2253398 | S41: 0 | T41: =(($E$67-$E$66)*(O41-$F$66)/($F$67-$F$66)+$E$66)/2 -> 467.2253398 | U41: -467.2253398 | V41: =IF(C40>0,L41,"") -> 15.53635645
D42: =D34 -> 33.56 | E42: =E43 -> 14.1488498 | G42: =IF(Information!$H$18="x",D42,0) -> 33.56 | H42: =IF(Information!$H$18="x",E42,0) -> 14.1488498 | I42: =SUM(D42:D43)/2 -> 28.4855751 | J42: =SUM(E42:E43)/2 -> 14.1488498 | K42: =IF(Information!$H$17="x",I42,0) -> 28.4855751 | L42: =IF(Information!$H$17="x",J42,0) -> 14.1488498 | N42: =N41 -> 0 | O42: 128.0447245 | P42: =P36 -> 934.4506796 | Q42: 467.2253398 | R42: -467.2253398 | S42: 0 | T42: =(($E$68-$E$67)*(O42-$F$67)/($F$68-$F$67)+$E$67)/2 -> 467.2253398 | U42: -467.2253398 | V42: =IF(C43>0,L42,"") -> 14.1488498
C43: =C40+1 -> 12 | D43: ='Panel Calculations'!D63 -> 23.4111502 | E43: ='Panel Calculations'!E63 -> 14.1488498 | G43: =IF(Information!$H$18="x",D43,0) -> 23.4111502 | H43: =IF(Information!$H$18="x",E43,0) -> 14.1488498 | K43: =K42 -> 28.4855751 | L43: =L42 -> 14.1488498 | N43: =N42 -> 0 | O43: 128.0447245 | P43: 934.4506796 | Q43: 467.2253398 | R43: -467.2253398 | S43: 0 | T43: =(($E$68-$E$67)*(O43-$F$67)/($F$68-$F$67)+$E$67)/2 -> 467.2253398 | U43: -467.2253398 | V43: =IF(C43>0,L43,"") -> 14.1488498
K44: =K43 -> 28.4855751 | L44: =L43 -> 14.1488498 | N44: =((I42-I39)^2+(J42-J39)^2)^0.5 -> 1.424978596 | O44: =O41+N44 -> 129.4697031 | P44: =(((D42-D43)^2+(E42-E43)^2)^0.5)*Information!$D$20-M44 -> 320.2976996 | Q44: 160.1488498 | R44: -160.1488498 | S44: -350.1867644 | T44: =(($E$68-$E$67)*(O44-$F$67)/($F$68-$F$67)+$E$67)/2 -> 335.242232 | U44: -335.242232 | V44: =IF(C43>0,L44,"") -> 14.1488498
D45: =D48 -> 33.56 | E45: ='Panel Calculations'!E61 -> 12.1488498 | G45: =IF(Information!$H$18="x",D45,0) -> 33.56 | H45: =IF(Information!$H$18="x",E45,0) -> 12.1488498 | I45: =SUM(D45:D46)/2 -> 28.4855751 | J45: =SUM(E45:E46)/2 -> 12.1488498 | K45: =IF(Information!$H$17="x",I45,0) -> 28.4855751 | L45: =IF(Information!$H$17="x",J45,0) -> 12.1488498 | N45: =N44 -> 1.424978596 | O45: 129.4697031 | P45: 320.2976996 | Q45: 160.1488498 | R45: -160.1488498 | S45: 0 | T45: =$P$44/2 -> 160.1488498 | U45: =-T45 -> -160.1488498 | V45: =IF(C46>0,L45,"") -> 12.1488498
B46: S4 | C46: =C43+1 -> 13 | D46: =D49 -> 23.4111502 | E46: =E45 -> 12.1488498 | G46: =IF(Information!$H$18="x",D46,0) -> 23.4111502 | H46: =IF(Information!$H$18="x",E46,0) -> 12.1488498 | K46: =K45 -> 28.4855751 | L46: =L45 -> 12.1488498 | N46: =N45 -> 1.424978596 | O46: 129.4697031 | P46: 320.2976996 | Q46: 160.1488498 | R46: -160.1488498 | S46: 0 | T46: =$P$44/2 -> 160.1488498 | U46: -160.1488498 | V46: =IF(C46>0,L46,"") -> 12.1488498
K47: =K46 -> 28.4855751 | L47: =L46 -> 12.1488498 | M47: =M50 -> 20.29769959 | N47: =((I45-I42)^2+(J45-J42)^2)^0.5 -> 2 | O47: =O44+N47 -> 131.4697031 | P47: =(((D45-D46)^2+(E45-E46)^2)^0.5)*Information!$D$20-M47 -> 300 | Q47: 150 | R47: -150 | S47: 0 | T47: =$P$47/2 -> 150 | U47: -150 | V47: =IF(C46>0,L47,"") -> 12.1488498
D48: =D34 -> 33.56 | E48: =(E46+E51)/2 -> 7.074424899 | G48: =IF(Information!$H$18="x",D48,0) -> 33.56 | H48: =IF(Information!$H$18="x",E48,0) -> 7.074424899 | I48: =SUM(D48:D49)/2 -> 28.4855751 | J48: =SUM(E48:E49)/2 -> 9.611637348 | K48: =IF(Information!$H$17="x",I48,0) -> 28.4855751 | L48: =IF(Information!$H$17="x",J48,0) -> 9.611637348 | N48: =N47 -> 2 | O48: 131.4697031 | P48: 300 | Q48: 150 | R48: -150 | S48: 0 | T48: =$P$47/2 -> 150 | U48: -150 | V48: =IF(C49>0,L48,"") -> 9.611637348
C49: =C46+1 -> 14 | D49: =D52 -> 23.4111502 | E49: =E46 -> 12.1488498 | G49: =IF(Information!$H$18="x",D49,0) -> 23.4111502 | H49: =IF(Information!$H$18="x",E49,0) -> 12.1488498 | K49: =K48 -> 28.4855751 | L49: =L48 -> 9.611637348 | N49: =N48 -> 2 | O49: 131.4697031 | P49: 300 | Q49: 150 | R49: -150 | S49: 0 | T49: 150 | U49: -150 | V49: =IF(C49>0,L49,"") -> 9.611637348
K50: =K49 -> 28.4855751 | L50: =L49 -> 9.611637348 | M50: ='Panel Calculations'!L118*'Panel Calculations'!L119 -> 20.29769959 | N50: =((I48-I45)^2+(J48-J45)^2)^0.5 -> 2.537212449 | O50: =O47+N50 -> 134.0069155 | P50: =(((D48-D49)^2+(E48-E49)^2)^0.5)*Information!$D$20-M50 -> 337.8060151 | Q50: 168.9030075 | R50: -168.9030075 | S50: 37.80601507 | T50: 150 | U50: -150 | V50: =IF(C49>0,L50,"") -> 9.611637348
D51: =(D52+'Panel Calculations'!D50)/2 -> 28.4855751 | E51: ='Panel Calculations'!E50 -> 2 | G51: =IF(Information!$H$18="x",D51,0) -> 28.4855751 | H51: =IF(Information!$H$18="x",E51,0) -> 2 | I51: =SUM(D51:D52)/2 -> 25.94836265 | J51: =SUM(E51:E52)/2 -> 7.074424899 | K51: =IF(Information!$H$17="x",I51,0) -> 25.94836265 | L51: =IF(Information!$H$17="x",J51,0) -> 7.074424899 | N51: =N50 -> 2.537212449 | O51: 134.0069155 | P51: 337.8060151 | Q51: 168.9030075 | R51: -168.9030075 | S51: 37.80601507 | T51: 150 | U51: -150 | V51: =IF(C52>0,L51,"") -> 7.074424899
C52: =C49+1 -> 15 | D52: =D55 -> 23.4111502 | E52: =E49 -> 12.1488498 | G52: =IF(Information!$H$18="x",D52,0) -> 23.4111502 | H52: =IF(Information!$H$18="x",E52,0) -> 12.1488498 | K52: =K51 -> 25.94836265 | L52: =L51 -> 7.074424899 | N52: =N51 -> 2.537212449 | O52: 134.0069155 | P52: 337.8060151 | Q52: 168.9030075 | R52: -168.9030075 | S52: 37.80601507 | T52: 150 | U52: -150 | V52: =IF(C52>0,L52,"") -> 7.074424899
K53: =K52 -> 25.94836265 | L53: =L52 -> 7.074424899 | M53: =M50 -> 20.29769959 | N53: =((I51-I48)^2+(J51-J48)^2)^0.5 -> 3.588160256 | O53: =O50+N53 -> 137.5950758 | P53: =(((D51-D52)^2+(E51-E52)^2)^0.5)*Information!$D$20-M53 -> 337.8060151 | Q53: 168.9030075 | R53: -168.9030075 | S53: 37.80601507 | T53: 150 | U53: -150 | V53: =IF(C52>0,L53,"") -> 7.074424899
D54: ='Panel Calculations'!D62 -> 23.4111502 | E54: ='Panel Calculations'!E53 -> 2 | G54: =IF(Information!$H$18="x",D54,0) -> 23.4111502 | H54: =IF(Information!$H$18="x",E54,0) -> 2 | I54: =SUM(D54:D55)/2 -> 23.4111502 | J54: =SUM(E54:E55)/2 -> 7.074424899 | K54: =IF(Information!$H$17="x",I54,0) -> 23.4111502 | L54: =IF(Information!$H$17="x",J54,0) -> 7.074424899 | N54: =N53 -> 3.588160256 | O54: 137.5950758 | P54: 337.8060151 | Q54: 168.9030075 | R54: -168.9030075 | S54: 37.80601507 | T54: 150 | U54: -150 | V54: =IF(C55>0,L54,"") -> 7.074424899
C55: =C52+1 -> 16 | D55: =D54 -> 23.4111502 | E55: =E52 -> 12.1488498 | G55: =IF(Information!$H$18="x",D55,0) -> 23.4111502 | H55: =IF(Information!$H$18="x",E55,0) -> 12.1488498 | K55: =K54 -> 23.4111502 | L55: =L54 -> 7.074424899 | N55: =N54 -> 3.588160256 | O55: 137.5950758 | P55: 337.8060151 | Q55: 168.9030075 | R55: -168.9030075 | S55: 37.80601507 | T55: 150 | U55: -150 | V55: =IF(C55>0,L55,"") -> 7.074424899
K56: =K55 -> 23.4111502 | L56: =L55 -> 7.074424899 | M56: =M53 -> 20.29769959 | N56: =((I54-I51)^2+(J54-J51)^2)^0.5 -> 2.537212449 | O56: =O53+N56 -> 140.1322882 | P56: =(((D54-D55)^2+(E54-E55)^2)^0.5)*Information!$D$20-M56 -> 300 | Q56: 150 | R56: -150 | S56: -5.684341886e-14 | T56: 150 | U56: -150 | V56: =IF(C55>0,L56,"") -> 7.074424899
D57: =D58 -> 0 | E57: =E55 -> 12.1488498 | G57: =IF(Information!$H$18="x",D57,0) -> 0 | H57: =IF(Information!$H$18="x",E57,0) -> 12.1488498 | I57: =SUM(D57:D58)/2 -> 0 | J57: =SUM(E57:E58)/2 -> 7.074424899 | K57: =IF(Information!$H$17="x",I57,0) -> 0 | L57: =IF(Information!$H$17="x",J57,0) -> 7.074424899 | N57: =N56 -> 2.537212449 | O57: 140.1322882 | P57: 300 | Q57: 150 | R57: -150 | S57: -5.684341886e-14 | T57: 150 | U57: -150 | V57: =IF(C58>0,L57,"") -> 7.074424899 | AA57: l | AB57: =((E34-#REF!)-(#REF!-D34)*'Panel Calculations'!Q23)/'Panel Calculations'!P23 ->  | AC57: (
B58: S5 | C58: =C55+1 -> 17 | D58: ='Panel Calculations'!D47 -> 0 | E58: ='Panel Calculations'!E47 -> 2 | G58: =IF(Information!$H$18="x",D58,0) -> 0 | H58: =IF(Information!$H$18="x",E58,0) -> 2 | K58: =K57 -> 0 | L58: =L57 -> 7.074424899 | N58: =N57 -> 2.537212449 | O58: 140.1322882 | P58: 300 | Q58: 150 | R58: -150 | S58: -5.684341886e-14 | T58: 150 | U58: -150 | V58: =IF(C58>0,L58,"") -> 7.074424899
K59: =K58 -> 0 | L59: =L58 -> 7.074424899 | M59: =M56 -> 20.29769959 | N59: =((I57-I54)^2+(J57-J54)^2)^0.5 -> 23.4111502 | O59: =O56+N59 -> 163.5434384 | P59: =(((D57-D58)^2+(E57-E58)^2)^0.5)*Information!$D$20-M59 -> 300 | Q59: 150 | R59: -150 | S59: -5.684341886e-14 | T59: 150 | U59: -150 | V59: =IF(C58>0,L59,"") -> 7.074424899
B63: S2 (Calc) | O63: =O35-Z12 -> 78.85355202 | P63: =((E67-E65)*O63/F67+E65) -> 575.4610788
E64: A | F64: L | G64: d
D65: S1 | E65: =P8 -> 0 | F65: =O8 -> 0
D66: S2 | E66: =P63 -> 575.4610788 | F66: =O63 -> 78.85355202 | G66: =F66-F65 -> 78.85355202
D67: S3 | E67: =P35 -> 934.4506796 | F67: =O35 -> 128.0447245 | G67: =F67-F66 -> 49.19117244
D68: S4 | E68: =P47 -> 300 | F68: =O47 -> 131.4697031 | G68: =F68-F67 -> 3.424978596
D69: S5 | E69: =P59 -> 300 | F69: =O59 -> 163.5434384 | G69: =F69-F68 -> 32.07373536

Sheet Guides
A1: Guides | C1: x | D1: y | F1: x | G1: y | J1: x1 | K1: y1 | L1: x2 | M1: y2 | N1: a | O1: b | P1: x | Q1: y | R1: l
C3: ='Panel Calculations'!D61 -> 0 | D3: ='Panel Calculations'!E61 -> 12.1488498 | F3: =IF(Information!$H$19="x",C3,0) -> 0 | G3: =IF(Information!$H$19="x",D3,0) -> 12.1488498
B4: 1 | C4: ='Panel Calculations'!D49 -> 35.56 | D4: =D3 -> 12.1488498 | F4: =IF(Information!$H$19="x",C4,0) -> 35.56 | G4: =IF(Information!$H$19="x",D4,0) -> 12.1488498
C6: ='Panel Calculations'!D33 -> 4 | D6: ='Panel Calculations'!E40 -> 86.36 | F6: =IF(Information!$H$19="x",C6,0) -> 4 | G6: =IF(Information!$H$19="x",D6,0) -> 86.36
B7: 2 | C7: =C6 -> 4 | D7: ='Panel Calculations'!E45 -> 0 | F7: =IF(Information!$H$19="x",C7,0) -> 4 | G7: =IF(Information!$H$19="x",D7,0) -> 0
C9: =P10 -> 35.56 | D9: =Q10 -> 7.298366736 | F9: =IF(Information!$H$19="x",C9,0) -> 35.56 | G9: =IF(Information!$H$19="x",D9,0) -> 7.298366736 | I9: ='Panel Calculations'!B55 -> Panel E | J9: ='Panel Calculations'!D57 -> 20.74002892 | K9: ='Panel Calculations'!E57 -> 70.639259 | L9: ='Panel Calculations'!D58 -> 31.612593 | M9: ='Panel Calculations'!E58 -> 24.16967374 | N9: =(M9-K9)/(L9-J9) -> -4.274022664 | O9: =(M9*J9-K9*L9)/(J9-L9) -> 159.2826127
B10: 3 | C10: =P11 -> 17.06182171 | D10: =Q11 -> 86.36 | F10: =IF(Information!$H$19="x",C10,0) -> 17.06182171 | G10: =IF(Information!$H$19="x",D10,0) -> 86.36 | I10: ='Panel Calculations'!B67 -> Panel G | J10: ='Panel Calculations'!D68 -> 35.56 | K10: ='Panel Calculations'!E68 -> 0 | L10: ='Panel Calculations'!D69 -> 35.56 | M10: ='Panel Calculations'!E69 -> 86.36 | N10: =IF(J10<>L10,(M10-K10)/(L10-J10),"") ->  | O10: =IF(J10<>L10,(M10*J10-K10*L10)/(J10-L10),"") ->  | P10: =IF(N10<>"",(O9-O10)/(N10-N9),J10) -> 35.56 | Q10: =P10*N9+O9 -> 7.298366736 | R10: =(P10^2+Q10^2)^0.5 -> 36.3012363
J11: ='Panel Calculations'!D39 -> 35.56 | K11: ='Panel Calculations'!E39 -> 86.36 | L11: ='Panel Calculations'!D40 -> 0 | M11: ='Panel Calculations'!E40 -> 86.36 | N11: =IF(J11<>L11,(M11-K11)/(L11-J11),"") -> 0 | O11: =IF(J11<>L11,(M11*J11-K11*L11)/(J11-L11),"") -> 86.36 | P11: =IF(N11<>"",(O9-O11)/(N11-N9),J11) -> 17.06182171 | Q11: =P11*N9+O9 -> 86.36 | R11: =(P11^2+Q11^2)^0.5 -> 88.02928694
F12: =IF(Information!$H$19="x",C12,0) -> 0 | G12: =IF(Information!$H$19="x",D12,0) -> 0
B13: 4 | F13: =IF(Information!$H$19="x",C13,0) -> 0 | G13: =IF(Information!$H$19="x",D13,0) -> 0
F15: =IF(Information!$H$19="x",C15,0) -> 0 | G15: =IF(Information!$H$19="x",D15,0) -> 0
B16: 5 | F16: =IF(Information!$H$19="x",C16,0) -> 0 | G16: =IF(Information!$H$19="x",D16,0) -> 0
F18: =IF(Information!$H$19="x",C18,0) -> 0 | G18: =IF(Information!$H$19="x",D18,0) -> 0
B19: 6 | F19: =IF(Information!$H$19="x",C19,0) -> 0 | G19: =IF(Information!$H$19="x",D19,0) -> 0
C24: 0 | D24: =0 -> 0 | F24: =IF(Information!$H$19="x",C24,0) -> 0 | G24: =IF(Information!$H$19="x",D24,0) -> 0
B25: X | C25: 0 | D25: =MAX(C3:D20) -> 86.36 | F25: =IF(Information!$H$19="x",C25,0) -> 0 | G25: =IF(Information!$H$19="x",D25,0) -> 86.36
C27: 0 | D27: =0 -> 0 | F27: =IF(Information!$H$19="x",C27,0) -> 0 | G27: =IF(Information!$H$19="x",D27,0) -> 0
B28: Y | C28: =D25 -> 86.36 | D28: =D27 -> 0 | F28: =IF(Information!$H$19="x",C28,0) -> 86.36 | G28: =IF(Information!$H$19="x",D28,0) -> 0
